fUST/lending_fUST_20250212
["ID","MTS","AMOUNT","RATE_DAILY","PERIOD"]
[352778486,1739306830508,-266.0,0.00016444,2]
[352778487,1739306830533,-266.0,0.00016444,2]
[352778488,1739306830561,-365.0,0.00016446,2]
[352778489,1739306830586,-365.0,0.00016446,2]
[352778490,1739306830609,-365.0,0.00016446,2]
[352778491,1739306830634,-365.0,0.00016446,2]
[352778492,1739306830658,-365.0,0.00016446,2]
[352778493,1739306830682,-365.0,0.00016446,2]
[352778494,1739306830706,-365.0,0.00016446,2]
[352778495,1739306830729,-365.0,0.00016446,2]
[352778496,1739306830752,-365.0,0.00016446,2]
[352778497,1739306830774,-365.0,0.00016446,2]
[352778498,1739306830800,-365.0,0.00016446,2]
[352778499,1739306830822,-365.0,0.00016446,2]
[352778500,1739306830845,-365.0,0.00016446,2]
[352778501,1739306830868,-19.30641757,0.00016452,2]
[352778502,1739306830892,-272.0,0.00016452,2]
[352778503,1739306830915,-272.0,0.00016452,2]
[352778504,1739306830939,-272.0,0.00016452,2]
[352778505,1739306830962,-272.0,0.00016452,2]
[352778506,1739306830986,-272.0,0.00016452,2]
[352778507,1739306831009,-272.0,0.00016452,2]
[352778508,1739306831036,-272.0,0.00016452,2]
[352778509,1739306831060,-272.0,0.00016452,2]
[352778510,1739306831083,-272.0,0.00016452,2]
[352778511,1739306831107,-272.0,0.00016452,2]
[352778512,1739306831134,-272.0,0.00016452,2]
[352778513,1739306831162,-272.0,0.00016452,2]
[352778514,1739306831191,-365.0,0.00016453,2]
[352778515,1739306831218,-365.0,0.00016453,2]
[352778516,1739306831242,-365.0,0.00016453,2]
[352778517,1739306831269,-365.0,0.00016453,2]
[352778518,1739306831298,-365.0,0.00016453,2]
[352778519,1739306831326,-365.0,0.00016453,2]
[352778520,1739306831353,-365.0,0.00016453,2]
[352778521,1739306831380,-365.0,0.00016453,2]
[352778522,1739306831405,-365.0,0.00016453,2]
[352778523,1739306831434,-365.0,0.00016453,2]
[352778524,1739306831462,-365.0,0.00016453,2]
[352778525,1739306831489,-365.0,0.00016453,2]
[352778526,1739306831515,-365.0,0.00016453,2]
[352778527,1739306831547,-365.0,0.00016453,2]
[352778528,1739306831573,-272.0,0.00016457,2]
[352778529,1739306831604,-272.0,0.00016457,2]
[352778530,1739306831633,-272.0,0.00016457,2]
[352778531,1739306831661,-272.0,0.00016457,2]
[352778532,1739306831686,-272.0,0.00016457,2]
[352778533,1739306831710,-272.0,0.00016457,2]
[352778534,1739306831738,-272.0,0.00016457,2]
[352778535,1739306831767,-272.0,0.00016457,2]
[352778536,1739306831793,-272.0,0.00016457,2]
[352778537,1739306831817,-272.0,0.00016457,2]
[352778538,1739306831843,-272.0,0.00016457,2]
[352778539,1739306831871,-272.0,0.00016457,2]
[352778540,1739306831897,-272.0,0.00016457,2]
[352778541,1739306831928,-272.0,0.00016457,2]
[352778542,1739306831954,-365.0,0.00016458,2]
[352778543,1739306831979,-365.0,0.00016458,2]
[352778544,1739306832002,-365.0,0.00016458,2]
[352778545,1739306832025,-365.0,0.00016458,2]
[352778546,1739306832054,-365.0,0.00016458,2]
[352778547,1739306832080,-365.0,0.00016458,2]
[352778548,1739306832106,-365.0,0.00016458,2]
[352778549,1739306832131,-365.0,0.00016458,2]
[352778550,1739306832154,-365.0,0.00016458,2]
[352778551,1739306832180,-365.0,0.00016458,2]
[352778552,1739306832204,-365.0,0.00016458,2]
[352778553,1739306832229,-365.0,0.00016458,2]
[352778554,1739306832254,-365.0,0.00016458,2]
[352778555,1739306832277,-365.0,0.00016458,2]
[352778556,1739306832304,-272.0,0.00016461,2]
[352778557,1739306832328,-272.0,0.00016461,2]
[352778558,1739306832354,-272.0,0.00016461,2]
[352778559,1739306832379,-272.0,0.00016461,2]
[352778560,1739306832403,-272.0,0.00016461,2]
[352778561,1739306832430,-272.0,0.00016461,2]
[352778562,1739306832453,-272.0,0.00016461,2]
[352778563,1739306832477,-272.0,0.00016461,2]
[352778564,1739306832500,-272.0,0.00016461,2]
[352778565,1739306832523,-272.0,0.00016461,2]
[352778566,1739306832551,-272.0,0.00016461,2]
[352778567,1739306832574,-272.0,0.00016461,2]
[352778568,1739306832598,-272.0,0.00016461,2]
[352778569,1739306832623,-272.0,0.00016461,2]
[352778570,1739306832647,-365.0,0.00016462,2]
[352778571,1739306832673,-365.0,0.00016462,2]
[352778572,1739306832696,-365.0,0.00016462,2]
[352778573,1739306832723,-365.0,0.00016462,2]
[352778574,1739306832747,-365.0,0.00016462,2]
[352778575,1739306832769,-365.0,0.00016462,2]
[352778576,1739306832793,-365.0,0.00016462,2]
[352778577,1739306832816,-365.0,0.00016462,2]
[352778578,1739306832838,-365.0,0.00016462,2]
[352778579,1739306832861,-365.0,0.00016462,2]
[352778580,1739306832884,-365.0,0.00016462,2]
[352778581,1739306832907,-365.0,0.00016462,2]
[352778582,1739306832930,-365.0,0.00016462,2]
[352778583,1739306832953,-365.0,0.00016462,2]
[352778584,1739306832974,-318.0,0.000165,2]
[352778585,1739306833170,-500.0,0.00016548,2]
[352778586,1739306833191,-500.0,0.00016648,2]
[352778587,1739306833211,-186.0,0.00016663,2]
[352778588,1739306833232,-186.03,0.00016663,2]
[352778589,1739306833253,-300.47,0.00016663,2]
[352778590,1739306833273,-1608.86167214,0.00016717,2]
[352778591,1739306833297,-4278.24061318,0.00016717,2]
[352778592,1739306833317,-250.7172011,0.0001674,2]
[352778593,1739306833339,-500.0,0.00016748,2]
[352778594,1739306833359,-605.18208698,0.00016773,2]
[352778595,1739306833381,-500.0,0.00016773,2]
[352778596,1739306833402,-151.0,0.00016792,2]
[352778597,1739306833422,-151.0,0.00016792,2]
[352778598,1739306833442,-151.0,0.00016792,2]
[352778599,1739306833462,-151.0,0.00016792,2]
[352778600,1739306833483,-151.0,0.00016792,2]
[352778601,1739306833502,-151.0,0.00016792,2]
[352778602,1739306833523,-151.0,0.00016792,2]
[352778603,1739306833545,-151.0,0.00016792,2]
[352778604,1739306833573,-151.0,0.00016792,2]
[352778605,1739306833595,-151.0,0.00016792,2]
[352778606,1739306833616,-151.0,0.00016792,2]
[352778607,1739306833639,-151.0,0.00016792,2]
[352778608,1739306833661,-151.0,0.00016792,2]
[352778609,1739306833682,-151.0,0.00016792,2]
[352778610,1739306833703,-151.0,0.00016792,2]
[352778611,1739306833724,-151.0,0.00016792,2]
[352778612,1739306833745,-151.0,0.00016792,2]
[352778613,1739306833766,-151.0,0.00016792,2]
[352778614,1739306833788,-168.456412,0.00016792,2]
[352778615,1739306833809,-151.0,0.00016792,2]
[352778616,1739306833832,-151.0,0.00016792,2]
[352778617,1739306833854,-151.0,0.00016792,2]
[352778618,1739306833877,-151.0,0.00016792,2]
[352778619,1739306833897,-151.0,0.00016792,2]
[352778620,1739306833917,-151.0,0.00016792,2]
[352778621,1739306833940,-151.0,0.00016792,2]
[352778622,1739306833963,-151.0,0.00016792,2]
[352778623,1739306833986,-151.0,0.00016792,2]
[352778624,1739306834009,-151.0,0.00016792,2]
[352778625,1739306834030,-151.0,0.00016792,2]
[352778626,1739306834051,-151.0,0.00016792,2]
[352778627,1739306834072,-151.0,0.00016792,2]
[352778628,1739306834093,-151.0,0.00016792,2]
[352778629,1739306834114,-151.0,0.00016792,2]
[352778630,1739306834134,-151.0,0.00016792,2]
[352778631,1739306834157,-151.0,0.00016792,2]
[352778632,1739306834179,-151.0,0.00016792,2]
[352778633,1739306834200,-151.0,0.00016792,2]
[352778634,1739306834222,-151.0,0.00016792,2]
[352778635,1739306834243,-225.840494,0.00016792,2]
[352778636,1739306834267,-151.0,0.00016792,2]
[352778637,1739306834291,-151.0,0.00016792,2]
[352778638,1739306834311,-151.0,0.00016792,2]
[352778639,1739306834334,-151.0,0.00016792,2]
[352778640,1739306834355,-151.0,0.00016792,2]
[352778641,1739306834377,-151.0,0.00016792,2]
[352778642,1739306834398,-151.0,0.00016792,2]
[352778643,1739306834419,-151.0,0.00016792,2]
[352778644,1739306834439,-151.0,0.00016792,2]
[352778645,1739306834462,-151.0,0.00016792,2]
[352778646,1739306834483,-151.0,0.00016792,2]
[352778647,1739306834504,-151.0,0.00016792,2]
[352778648,1739306834526,-151.0,0.00016792,2]
[352778649,1739306834552,-259.828706,0.00016792,2]
[352778650,1739306834573,-151.0,0.00016792,2]
[352778651,1739306834594,-151.0,0.00016792,2]
[352778652,1739306834615,-151.0,0.00016792,2]
[352778653,1739306834637,-151.0,0.00016792,2]
[352778654,1739306834658,-151.0,0.00016792,2]
[352778655,1739306834679,-488.778676,0.00016792,2]
[352778656,1739306834700,-488.778676,0.00016792,2]
[352778657,1739306834721,-488.778676,0.00016792,2]
[352778658,1739306834743,-488.778676,0.00016792,2]
[352778659,1739306834763,-488.778676,0.00016792,2]
[352778660,1739306834785,-488.778676,0.00016792,2]
[352778661,1739306834806,-488.778676,0.00016792,2]
[352778662,1739306834827,-488.778676,0.00016792,2]
[352778663,1739306834847,-488.778676,0.00016792,2]
[352778664,1739306834868,-488.778676,0.00016792,2]
[352778665,1739306834890,-488.778676,0.00016792,2]
[352778666,1739306834911,-488.778676,0.00016792,2]
[352778667,1739306834933,-488.778676,0.00016792,2]
[352778668,1739306834957,-488.778676,0.00016792,2]
[352778669,1739306834979,-488.778676,0.00016792,2]
[352778670,1739306835002,-488.778676,0.00016792,2]
[352778671,1739306835025,-488.778676,0.00016792,2]
[352778672,1739306835048,-301.69025529,0.00016792,2]
[352778673,1739306835086,-187.08842071,0.00016792,2]
[352778674,1739306835109,-488.778676,0.00016792,2]
[352778675,1739306835130,-488.778666,0.00016792,2]
[352778676,1739306835150,-2000.0,0.000168,2]
[352778677,1739306835174,-152.32199824,0.00016816,2]
[352778678,1739306835195,-456.55551685,0.00016816,2]
[352778717,1739307032791,-10864.99996,0.000111,2]
[352778718,1739307032803,-164609.38663369,0.000111,2]
[352778719,1739307032815,-4668.92594977,0.000111,2]
[352778720,1739307032826,-4126.07377054,0.000111,2]
[352778721,1739307032846,-19071.6,0.000111,2]
[352778757,1739307041273,-20905.17187998,0.000111,2]
[352778758,1739307043031,-7396.12126114,0.000111,2]
[352778760,1739307043135,-4560.16337481,0.000111,2]
[352778761,1739307043148,-44411.97862584,0.000111,2]
[352778762,1739307043158,-5000.0,0.00011761,2]
[352778763,1739307043167,-490.0,0.0001188,2]
[352778764,1739307043177,-1153.29,0.00012,2]
[352778765,1739307043186,-600.0,0.0001339,2]
[352778766,1739307043195,-600.0,0.0001476,2]
[352778767,1739307043204,-600.0,0.0001613,2]
[352778768,1739307043214,-167.1448007,0.0001674,2]
[352778769,1739307043223,-533.07,0.00016805,2]
[352778770,1739307043234,-500.0,0.00016805,2]
[352778771,1739307043243,-520.57284604,0.00016805,2]
[352778773,1739307043252,-18869.10736947,0.00016806,5]
[352778774,1739307043261,-4828.38227697,0.00016806,5]
[352778784,1739307043725,-134.5284757,0.00016806,5]
[352778790,1739307044996,679.387,0.00011,2]
[352778800,1739307046732,-983.8000001,0.00016806,5]
[352778801,1739307046788,-1096.66,0.00016806,5]
[352778802,1739307062845,6112.0,0.0001,2]
[352778803,1739307063296,6107.0,0.0001,2]
[352778804,1739307063464,6107.0,0.0001,2]
[352778805,1739307063814,6107.0,0.0001,2]
[352778806,1739307064132,6107.0,0.0001,2]
[352778807,1739307064429,6107.0,0.0001,2]
[352778813,1739307195560,156884.38,0.00011,2]
[352778814,1739307331571,400.0,0.00010685,2]
[352778834,1739308044169,-316.0,0.000112,3]
[352778835,1739308044190,-134.0,0.0001188,2]
[352778836,1739308051084,-75.52378,0.0001188,2]
[352778837,1739308051107,-490.39994978,0.00012,2]
[352778892,1739308231962,-988.92,0.00012,2]
[352778895,1739308231973,-2000.0,0.000121,2]
[352778896,1739308231983,-316.0,0.000127,4]
[352778898,1739308231994,-293.5414101,0.00012894,2]
[352778900,1739308232005,-274.77,0.00012901,2]
[352778902,1739308232014,-2000.0,0.000131,2]
[352778904,1739308232023,-700.0,0.0001339,2]
[352778906,1739308232033,-292.66798,0.00013699,2]
[352778908,1739308232042,-841.5,0.000141,2]
[352778910,1739308232052,-316.0,0.000142,5]
[352778912,1739308232061,-532.090876,0.00014482,2]
[352778914,1739308232072,-300.0,0.00014489,2]
[352778915,1739308232081,-2749.85223365,0.0001449,2]
[352778920,1739308232124,-22150.14776635,0.0001449,2]
[352778921,1739308232134,-700.0,0.0001476,2]
[352778922,1739308232143,-250.0,0.00014854,2]
[352778924,1739308232153,-500.0,0.00015421,2]
[352778926,1739308232162,-500.0,0.00015521,2]
[352778928,1739308232172,-267.3468161,0.00015593,2]
[352778930,1739308232181,-500.0,0.00015621,2]
[352778932,1739308232191,-316.0,0.000157,6]
[352778934,1739308232200,-500.0,0.00015721,2]
[352778935,1739308232209,-500.0,0.00015821,2]
[352778936,1739308232218,-420.0,0.00015866,2]
[352778937,1739308232228,-500.0,0.00015921,2]
[352778938,1739308232237,-154.719,0.0001599,2]
[352778939,1739308232246,-500.0,0.00016021,2]
[352778940,1739308232255,-354.876058,0.00016082,2]
[352778941,1739308232265,-500.0,0.00016121,2]
[352778942,1739308232274,-306.746,0.0001613,2]
[352778943,1739308232284,-700.0,0.0001613,2]
[352778944,1739308232293,-179.739,0.0001613,2]
[352778945,1739308232302,-500.0,0.00016221,2]
[352778946,1739308232311,-500.0,0.00016321,2]
[352778947,1739308232321,-153.0,0.00016364,2]
[352778948,1739308232330,-153.0,0.00016364,2]
[352778949,1739308232339,-153.0,0.00016364,2]
[352778950,1739308232347,-153.0,0.00016364,2]
[352778951,1739308232357,-153.0,0.00016364,2]
[352778952,1739308232367,-153.0,0.00016364,2]
[352778953,1739308232377,-153.0,0.00016364,2]
[352778954,1739308232386,-153.0,0.00016364,2]
[352778955,1739308232396,-153.0,0.00016364,2]
[352778957,1739308232406,-153.0,0.00016364,2]
[352778958,1739308232416,-153.0,0.00016364,2]
[352778959,1739308232425,-153.0,0.00016364,2]
[352778961,1739308232435,-153.0,0.00016364,2]
[352778963,1739308232444,-153.0,0.00016364,2]
[352778965,1739308232453,-153.0,0.00016364,2]
[352778967,1739308232463,-153.0,0.00016364,2]
[352778968,1739308232477,-153.0,0.00016364,2]
[352778970,1739308232486,-153.0,0.00016368,2]
[352778971,1739308232496,-153.0,0.00016368,2]
[352778972,1739308232505,-153.0,0.00016368,2]
[352778973,1739308232514,-153.0,0.00016368,2]
[352778974,1739308232523,-153.0,0.00016368,2]
[352778975,1739308232533,-153.0,0.00016368,2]
[352778976,1739308232542,-153.0,0.00016368,2]
[352778977,1739308232551,-153.0,0.00016368,2]
[352778978,1739308232561,-153.0,0.00016368,2]
[352778979,1739308232570,-153.0,0.00016368,2]
[352778980,1739308232579,-153.0,0.00016368,2]
[352778981,1739308232588,-153.0,0.00016368,2]
[352778982,1739308232598,-500.0,0.00016421,2]
[352778983,1739308232607,-500.0,0.00016438,2]
[352778984,1739308232616,-13268.2024785,0.00016494,2]
[352778985,1739308232626,-500.0,0.00016521,2]
[352778986,1739308232635,-500.0,0.00016621,2]
[352778987,1739308232645,-177.7961851,0.00016654,2]
[352778988,1739308232654,-22608.58854434,0.00016655,2]
[352778989,1739308232663,-7991.18822633,0.0001668,2]
[352778990,1739308232673,-2449.63081175,0.00016687,2]
[352778991,1739308232683,-184.31961155,0.00016691,2]
[352778992,1739308232692,-1485.68018198,0.00016691,2]
[352778993,1739308232704,-4275.78809463,0.00016691,2]
[352778994,1739308232714,-500.0,0.00016721,2]
[352778995,1739308232728,-500.0,0.0001679,2]
[352778996,1739308232737,-214.40099222,0.0001679,2]
[352778997,1739308232748,-335.4083633,0.0001679,2]
[352778998,1739308232757,-500.0,0.0001679,2]
[352778999,1739308232767,-500.0,0.0001679,2]
[352779000,1739308232777,-395.13072409,0.0001679,2]
[352779001,1739308232787,-319.0,0.0001679,2]
[352779002,1739308232796,-151.0,0.0001679,2]
[352779003,1739308232926,-151.0,0.0001679,2]
[352779004,1739308232937,-151.0,0.0001679,2]
[352779005,1739308232947,-151.0,0.0001679,2]
[352779006,1739308232957,-151.820404,0.0001679,2]
[352779007,1739308232967,-151.0,0.0001679,2]
[352779008,1739308232977,-151.0,0.0001679,2]
[352779009,1739308232986,-151.0,0.0001679,2]
[352779010,1739308233006,-151.0,0.0001679,2]
[352779011,1739308233018,-151.0,0.0001679,2]
[352779012,1739308233029,-151.0,0.0001679,2]
[352779013,1739308233041,-151.0,0.0001679,2]
[352779014,1739308233052,-151.0,0.0001679,2]
[352779015,1739308233062,-510.86,0.0001679,2]
[352779016,1739308233074,-43176.71600768,0.00016791,5]
[352779017,1739308233086,-1879.38937968,0.00016791,5]
[352779037,1739308237691,-421.84161707,0.0001679,2]
[352779105,1739308242896,-1308.82834252,0.00016655,2]
[352779106,1739308242907,-998.87431141,0.00016655,2]
[352779107,1739308244578,-1389.824995,0.00016655,2]
[352779108,1739308244590,-951.545,0.00016655,2]
[352779109,1739308244601,-10080.59840914,0.00016655,2]
[352779110,1739308244612,-7878.91748627,0.00016655,2]
[352779111,1739308244622,-77.15838293,0.0001679,2]
[352779112,1739308244631,-6480.5241308,0.00016791,5]
[352779113,1739308244642,-1074.64017426,0.00016791,5]
[352779114,1739308244651,-1311.13482574,0.00016791,5]
[352779128,1739308245938,-3934.0,0.00016791,5]
[352779129,1739308245950,-11900.0,0.00016791,5]
[352779130,1739308245996,-962.55,0.00016791,5]
[352779131,1739308246012,-3480.6731781,0.00016791,5]
[352779132,1739308246022,-151.0,0.00016791,2]
[352779133,1739308246031,-151.0,0.00016791,2]
[352779134,1739308246040,-151.0,0.00016791,2]
[352779135,1739308246050,-151.0,0.00016791,2]
[352779136,1739308246059,-151.0,0.00016791,2]
[352779137,1739308246068,-151.0,0.00016791,2]
[352779138,1739308246079,-151.0,0.00016791,2]
[352779139,1739308246088,-151.0,0.00016791,2]
[352779140,1739308246097,-84.4268219,0.00016791,2]
[352779146,1739308502033,400.0,0.00010685,2]
[352779164,1739309247096,-5000.0,0.00011643,2]
[352779165,1739309247120,-5000.0,0.00011761,2]
[352779166,1739309247145,-300.0,0.00011998,2]
[352779167,1739309247167,-890.03,0.00012,2]
[352779168,1739309247189,-900.0,0.00012294,2]
[352779169,1739309247212,-250.0,0.00012741,2]
[352779170,1739309247235,-420.0,0.00013171,2]
[352779171,1739309247257,-157.909657,0.00013252,2]
[352779172,1739309247279,-157.909657,0.00013261,2]
[352779173,1739309247301,-157.909657,0.00013269,2]
[352779174,1739309247328,-157.909657,0.00013277,2]
[352779175,1739309247352,-157.909657,0.00013286,2]
[352779176,1739309247376,-157.909657,0.00013294,2]
[352779177,1739309247403,-157.909657,0.00013302,2]
[352779178,1739309247424,-157.909657,0.0001331,2]
[352779179,1739309247446,-157.909657,0.00013319,2]
[352779180,1739309247466,-150.0,0.0001338,2]
[352779181,1739309247487,-537.0,0.0001338,2]
[352779182,1739309247514,-1975.0,0.0001338,2]
[352779183,1739309247535,-203.65878018,0.0001338,2]
[352779187,1739309311081,13686.98700694,0.000109,2]
[352779188,1739309311214,276.83475975,0.0001,2]
[352779189,1739309321199,1000.0,0.0001,2]
[352779256,1739309432139,-374.86910018,0.0001188,2]
[352779257,1739309432201,-333.73655866,0.0001188,2]
[352779258,1739309432264,-4291.39434116,0.0001188,2]
[352779259,1739309432273,-801.03,0.00012,2]
[352779261,1739309432283,-800.0,0.00012294,2]
[352779262,1739309432292,-67.36863532,0.0001338,2]
[352779322,1739309437851,-500.0,0.00011761,2]
[352779325,1739309437864,-1571.41154661,0.00011761,2]
[352779327,1739309437873,-2024.9725845,0.0001338,2]
[352779329,1739309437883,-219.41184089,0.00013554,2]
[352779331,1739309437895,-280.58815911,0.00013554,2]
[352779333,1739309437904,-500.0,0.00013554,2]
[352779335,1739309437914,-500.0,0.00013554,2]
[352779337,1739309437924,-500.0,0.00013554,2]
[352779339,1739309437934,-500.0,0.00013555,2]
[352779341,1739309437943,-500.0,0.00013555,2]
[352779343,1739309437953,-630.52,0.00013555,2]
[352779345,1739309437963,-6190.49184089,0.00013555,2]
[352779347,1739309437975,-4864.60815911,0.00013555,2]
[352779349,1739309437984,-555.62,0.00013555,2]
[352779351,1739309437994,-500.0,0.00013555,2]
[352779353,1739309438004,-500.0,0.00013555,2]
[352779356,1739309438013,-500.0,0.00013555,2]
[352779359,1739309438023,-500.0,0.00013555,2]
[352779363,1739309438033,-500.0,0.00013555,2]
[352779366,1739309438042,-60.78316576,0.00013555,2]
[352779367,1739309438054,-439.21683424,0.00013555,2]
[352779368,1739309438064,-500.0,0.00013555,2]
[352779369,1739309438075,-500.0,0.00013555,2]
[352779370,1739309438085,-24900.0,0.00013555,2]
[352779371,1739309438094,-500.0,0.00013663,2]
[352779372,1739309438105,-500.0,0.00013663,2]
[352779373,1739309438114,-500.0,0.00013663,2]
[352779374,1739309438124,-500.0,0.00013663,2]
[352779375,1739309438134,-500.0,0.00013663,2]
[352779376,1739309438144,-500.0,0.00013663,2]
[352779377,1739309438154,-500.0,0.00013663,2]
[352779378,1739309438165,-500.0,0.00013663,2]
[352779379,1739309438174,-500.0,0.00013663,2]
[352779380,1739309438183,-500.0,0.00013663,2]
[352779381,1739309438193,-500.0,0.00013663,2]
[352779382,1739309438204,-500.0,0.00013663,2]
[352779383,1739309438214,-800.0,0.00013664,2]
[352779384,1739309438224,-500.0,0.00013692,2]
[352779385,1739309438234,-234.134384,0.00013699,2]
[352779386,1739309438245,-500.0,0.000138,2]
[352779387,1739309438256,-500.0,0.000138,2]
[352779388,1739309438267,-310.3,0.000138,2]
[352779389,1739309438277,-500.0,0.000138,2]
[352779390,1739309438287,-268.61,0.00013829,2]
[352779391,1739309438296,-500.0,0.00013937,2]
[352779392,1739309438307,-500.0,0.00013937,2]
[352779393,1739309438316,-500.0,0.00013937,2]
[352779394,1739309438328,-500.0,0.00014074,2]
[352779395,1739309438338,-500.0,0.00014074,2]
[352779396,1739309438347,-500.0,0.00014074,2]
[352779397,1739309438358,-500.0,0.00014211,2]
[352779398,1739309438368,-507.43,0.00014211,2]
[352779399,1739309438382,-500.0,0.00014211,2]
[352779400,1739309438392,-500.0,0.00014348,2]
[352779401,1739309438401,-500.0,0.00014348,2]
[352779402,1739309438412,-500.0,0.00014485,2]
[352779403,1739309438423,-500.0,0.00014485,2]
[352779404,1739309438433,-500.0,0.00014622,2]
[352779405,1739309438442,-500.0,0.00014622,2]
[352779406,1739309438453,-266.045438,0.00014706,2]
[352779407,1739309438463,-500.0,0.00014759,2]
[352779408,1739309438472,-500.0,0.00014759,2]
[352779409,1739309438482,-500.0,0.00014896,2]
[352779410,1739309438492,-500.0,0.00014896,2]
[352779411,1739309438501,-607.64,0.00015033,2]
[352779412,1739309438510,-15.40692399,0.00015033,2]
[352779413,1739309438523,-272.08,0.00015033,2]
[352779414,1739309438538,-212.51307601,0.00015033,2]
[352779415,1739309438548,-306.946,0.00015034,2]
[352779416,1739309438558,-480.54092399,0.00015034,2]
[352779420,1739309440241,-720.92,0.00012,2]
[352779421,1739309440251,-500.0,0.00013663,2]
[352779422,1739309440260,-319.45907601,0.00015034,2]
[352779423,1739309440270,-500.0,0.0001517,2]
[352779424,1739309440279,-500.0,0.00015307,2]
[352779425,1739309440289,-188.13756662,0.00015391,2]
[352779426,1739309440298,-500.0,0.00015444,2]
[352779427,1739309440307,-549.40266679,0.00015489,2]
[352779428,1739309440318,-4490.95010336,0.00015489,2]
[352779429,1739309440331,-6014.74722985,0.00015489,2]
[352779430,1739309440341,-11055.1,0.00015489,2]
[352779431,1739309440350,-11055.1,0.00015489,2]
[352779432,1739309440360,-11055.1,0.00015489,2]
[352779434,1739309440369,-11055.1,0.00015489,2]
[352779436,1739309440383,-500.0,0.00015489,2]
[352779438,1739309440392,-500.0,0.00015489,2]
[352779439,1739309440401,-500.0,0.00015489,2]
[352779440,1739309440410,-500.0,0.00015489,2]
[352779441,1739309440420,-500.0,0.00015489,2]
[352779442,1739309440430,-500.0,0.00015489,2]
[352779443,1739309440439,-518.62884257,0.00015489,2]
[352779444,1739309440449,-500.0,0.00015489,2]
[352779445,1739309440461,-500.0,0.00015489,2]
[352779446,1739309440471,-500.0,0.00015489,2]
[352779447,1739309440481,-500.0,0.00015489,2]
[352779448,1739309440490,-500.0,0.00015489,2]
[352779449,1739309440499,-500.0,0.00015489,2]
[352779450,1739309440509,-500.0,0.00015489,2]
[352779451,1739309440518,-499.64896127,0.00015489,2]
[352779452,1739309440527,-500.0,0.00015489,2]
[352779453,1739309440537,-500.0,0.00015489,2]
[352779454,1739309440546,-500.0,0.00015489,2]
[352779455,1739309440556,-500.0,0.00015489,2]
[352779456,1739309440566,-10794.17900192,0.0001549,5]
[352779457,1739309440576,-500.0,0.0001549,2]
[352779458,1739309440585,-500.0,0.0001549,2]
[352779459,1739309440595,-500.0,0.0001549,2]
[352779460,1739309440604,-500.0,0.0001549,2]
[352779461,1739309440614,-500.0,0.0001549,2]
[352779462,1739309440624,-500.0,0.0001549,2]
[352779463,1739309440633,-500.0,0.0001549,2]
[352779464,1739309440643,-500.0,0.0001549,2]
[352779465,1739309440653,-500.0,0.0001549,2]
[352779466,1739309440777,-500.0,0.0001549,2]
[352779467,1739309440788,-500.0,0.0001549,2]
[352779468,1739309440798,-500.0,0.0001549,2]
[352779469,1739309440808,-500.0,0.0001549,2]